[Event "January 2 Late 2024"]
[Site "https://www.chess.com"]
[Date "2024.01.02"]
[Round "11"]
[White "Gaal, Zsoka"]
[Black "Paragua, Megan Althea"]
[Result "0-1"]
[Board "97"]
[TimeControl "180+1"]
[WhiteFideId "777765"]
[BlackFideId "30973007"]
[WhiteElo "2468"]
[BlackElo "2377"]
[WhiteTeam "HUN"]
[BlackTeam "USA"]
[WhiteClock "0:00:01"]
[BlackClock "0:00:07"]

1. e4 {[%clk 0:02:50]}  c5 {[%clk 0:02:58]} 2. Nf3 {[%clk 0:02:50]}  Nf6 {[%clk 0:02:57]} 3. g3 {[%clk 0:02:50]}  Nxe4 {[%clk 0:02:56]} 4. Bg2 {[%clk 0:02:49]}  Nf6 {[%clk 0:02:56]} 5. O-O {[%clk 0:02:49]}  d6 {[%clk 0:02:56]} 6. Re1 {[%clk 0:02:45]}  e6 {[%clk 0:02:56]} 7. d4 {[%clk 0:02:45]}  cxd4 {[%clk 0:02:55]} 8. Nxd4 {[%clk 0:02:46]}  Be7 {[%clk 0:02:55]} 9. c4 {[%clk 0:02:46]}  O-O {[%clk 0:02:55]} 10. Nc3 {[%clk 0:02:46]}  a6 {[%clk 0:02:54]} 11. b3 {[%clk 0:02:39]}  Qc7 {[%clk 0:02:53]} 12. Bb2 {[%clk 0:02:24]}  Nc6 {[%clk 0:02:50]} 13. Nc2 {[%clk 0:02:24]}  b6 {[%clk 0:02:36]} 14. b4 {[%clk 0:02:15]}  Bb7 {[%clk 0:02:32]} 15. Ne3 {[%clk 0:02:05]}  Nxb4 {[%clk 0:02:22]} 16. Qb3 {[%clk 0:01:51]}  Nc6 {[%clk 0:02:16]} 17. Na4 {[%clk 0:01:45]}  Bd8 {[%clk 0:02:03]} 18. Rac1 {[%clk 0:01:41]}  Na5 {[%clk 0:02:02]} 19. Qa3 {[%clk 0:01:37]}  Bxg2 {[%clk 0:02:00]} 20. Kxg2 {[%clk 0:01:31]}  Qc6+ {[%clk 0:01:59]} 21. Kg1 {[%clk 0:01:30]}  Be7 {[%clk 0:01:59]} 22. Nd5 {[%clk 0:01:17]}  exd5 {[%clk 0:01:46]} 23. Rxe7 {[%clk 0:01:03]}  Nxc4 {[%clk 0:01:43]} 24. Bxf6 {[%clk 0:00:48]}  gxf6 {[%clk 0:01:32]} 25. Qf3 {[%clk 0:00:47]}  Ne5 {[%clk 0:00:38]} 26. Qf4 {[%clk 0:00:33]}  Qb5 {[%clk 0:00:26]} 27. Qxf6 {[%clk 0:00:31]}  Ng6 {[%clk 0:00:18]} 28. Nc3 {[%clk 0:00:27]}  Qb2 {[%clk 0:00:18]} 29. Qg5 {[%clk 0:00:22]}  Rac8 {[%clk 0:00:12]} 30. Re2 {[%clk 0:00:14]}  Qb4 {[%clk 0:00:10]} 31. Nxd5 {[%clk 0:00:13]}  Rxc1+ {[%clk 0:00:08]} 32. Qxc1 {[%clk 0:00:14]}  Qd4 {[%clk 0:00:08]} 33. Ne3 {[%clk 0:00:11]}  Qg7 {[%clk 0:00:07]} 34. Nf5 {[%clk 0:00:12]}  Qf6 {[%clk 0:00:07]} 35. Qb1 {[%clk 0:00:08]}  d5 {[%clk 0:00:07]} 36. h4 {[%clk 0:00:06]}  h5 {[%clk 0:00:07]} 37. Rd2 {[%clk 0:00:05]}  Rd8 {[%clk 0:00:06]} 38. Ne3 {[%clk 0:00:06]}  d4 {[%clk 0:00:06]} 39. Nc4 {[%clk 0:00:06]}  b5 {[%clk 0:00:07]} 40. Na5 {[%clk 0:00:03]}  Ne5 {[%clk 0:00:07]} 41. Qe4 {[%clk 0:00:02]}  Nf3+ {[%clk 0:00:07]} 42. Kg2 {[%clk 0:00:02]}  Nxd2 {[%clk 0:00:08]} 43. Nc6 {[%clk 0:00:01]}  Nxe4 {[%clk 0:00:07]} 0-1

[Event "January 2 Late 2024"]
[Site "https://www.chess.com"]
[Date "2024.01.02"]
[Round "11"]
[White "Lalanne, Pablo"]
[Black "Lopusiewicz, Piotr"]
[Result "0-1"]
[Board "98"]
[TimeControl "180+1"]
[WhiteFideId "112151"]
[BlackFideId "1116029"]
[WhiteElo "2319"]
[BlackElo "2452"]
[WhiteTeam "ARG"]
[BlackTeam "POL"]
[WhiteClock "0:00:23"]
[BlackClock "0:00:17"]

1. e4 {[%clk 0:03:00]}  e5 {[%clk 0:02:59]} 2. Nf3 {[%clk 0:03:00]}  Nc6 {[%clk 0:03:00]} 3. Bb5 {[%clk 0:03:00]}  a6 {[%clk 0:03:00]} 4. Ba4 {[%clk 0:03:00]}  Nf6 {[%clk 0:03:00]} 5. O-O {[%clk 0:03:00]}  Be7 {[%clk 0:03:00]} 6. Re1 {[%clk 0:03:00]}  b5 {[%clk 0:02:59]} 7. Bb3 {[%clk 0:03:01]}  O-O {[%clk 0:03:00]} 8. a4 {[%clk 0:03:00]}  Na5 {[%clk 0:02:59]} 9. Ba2 {[%clk 0:02:49]}  d6 {[%clk 0:02:58]} 10. d4 {[%clk 0:02:49]}  exd4 {[%clk 0:02:47]} 11. Nxd4 {[%clk 0:02:48]}  c5 {[%clk 0:02:33]} 12. Nf3 {[%clk 0:02:45]}  Bb7 {[%clk 0:02:27]} 13. Nbd2 {[%clk 0:02:40]}  h6 {[%clk 0:02:10]} 14. e5 {[%clk 0:02:40]}  dxe5 {[%clk 0:02:09]} 15. Nxe5 {[%clk 0:02:40]}  c4 {[%clk 0:02:05]} 16. Ndf3 {[%clk 0:02:34]}  Qc7 {[%clk 0:01:51]} 17. Bf4 {[%clk 0:02:24]}  Bd6 {[%clk 0:01:50]} 18. Bg3 {[%clk 0:02:23]}  Rad8 {[%clk 0:01:49]} 19. Qe2 {[%clk 0:02:19]}  Rfe8 {[%clk 0:01:48]} 20. Rad1 {[%clk 0:02:00]}  Bxf3 {[%clk 0:01:41]} 21. Qxf3 {[%clk 0:01:54]}  Bxe5 {[%clk 0:01:11]} 22. Rxd8 {[%clk 0:01:52]}  Qxd8 {[%clk 0:01:11]} 23. Bxe5 {[%clk 0:01:50]}  Qd5 {[%clk 0:00:58]} 24. Qxd5 {[%clk 0:01:41]}  Nxd5 {[%clk 0:00:58]} 25. axb5 {[%clk 0:01:37]}  axb5 {[%clk 0:00:56]} 26. Kf1 {[%clk 0:01:32]}  Re6 {[%clk 0:00:47]} 27. b3 {[%clk 0:01:26]}  Nb4 {[%clk 0:00:41]} 28. Bb1 {[%clk 0:01:17]}  Nac6 {[%clk 0:00:41]} 29. Bc3 {[%clk 0:01:15]}  Nd5 {[%clk 0:00:37]} 30. Rxe6 {[%clk 0:01:13]}  fxe6 {[%clk 0:00:37]} 31. Bd2 {[%clk 0:01:11]}  c3 {[%clk 0:00:37]} 32. Bc1 {[%clk 0:01:05]}  b4 {[%clk 0:00:37]} 33. Ke2 {[%clk 0:01:05]}  Kf7 {[%clk 0:00:37]} 34. Kd3 {[%clk 0:01:01]}  Nb6 {[%clk 0:00:20]} 35. Be3 {[%clk 0:00:58]}  Ne5+ {[%clk 0:00:20]} 36. Ke4 {[%clk 0:00:53]}  Ned7 {[%clk 0:00:19]} 37. Kd4 {[%clk 0:00:51]}  Ke7 {[%clk 0:00:18]} 38. Kd3 {[%clk 0:00:49]}  Kd6 {[%clk 0:00:18]} 39. Bd4 {[%clk 0:00:49]}  e5 {[%clk 0:00:18]} 40. Be3 {[%clk 0:00:49]}  Nc5+ {[%clk 0:00:17]} 41. Ke2 {[%clk 0:00:45]}  Kd5 {[%clk 0:00:17]} 42. f3 {[%clk 0:00:45]}  Nc8 {[%clk 0:00:16]} 43. g4 {[%clk 0:00:44]}  Nd6 {[%clk 0:00:16]} 44. h4 {[%clk 0:00:44]}  Ne6 {[%clk 0:00:16]} 45. Kd3 {[%clk 0:00:39]}  Nf4+ {[%clk 0:00:15]} 46. Bxf4 {[%clk 0:00:36]}  exf4 {[%clk 0:00:15]} 47. g5 {[%clk 0:00:33]}  h5 {[%clk 0:00:15]} 48. Ke2 {[%clk 0:00:32]}  g6 {[%clk 0:00:15]} 49. Kd3 {[%clk 0:00:32]}  Nf5 {[%clk 0:00:15]} 50. Ke2 {[%clk 0:00:29]}  Kd4 {[%clk 0:00:15]} 51. Kf2 {[%clk 0:00:30]}  Nxh4 {[%clk 0:00:15]} 52. Ke2 {[%clk 0:00:29]}  Nf5 {[%clk 0:00:15]} 53. Kf2 {[%clk 0:00:29]}  Ng7 {[%clk 0:00:15]} 54. Ke2 {[%clk 0:00:28]}  Ne6 {[%clk 0:00:16]} 55. Kf2 {[%clk 0:00:27]}  Nxg5 {[%clk 0:00:16]} 56. Kg2 {[%clk 0:00:26]}  Ne6 {[%clk 0:00:16]} 57. Kf2 {[%clk 0:00:26]}  g5 {[%clk 0:00:17]} 58. Ke2 {[%clk 0:00:23]}  g4 {[%clk 0:00:17]} 0-1

[Event "January 2 Late 2024"]
[Site "https://www.chess.com"]
[Date "2024.01.02"]
[Round "11"]
[White "Gonzalez Zharikov, Andrey"]
[Black "Vujacic, Igor"]
[Result "1-0"]
[Board "100"]
[TimeControl "180+1"]
[WhiteFideId "5145287"]
[BlackFideId "932620"]
[WhiteElo "2307"]
[BlackElo "2444"]
[WhiteTeam "MEX"]
[BlackTeam "MNE"]
[WhiteClock "0:00:47"]
[BlackClock "0:00:04"]

1. Nf3 {[%clk 0:03:00]}  d5 {[%clk 0:02:57]} 2. c4 {[%clk 0:03:00]}  d4 {[%clk 0:02:56]} 3. b4 {[%clk 0:02:58]}  g5 {[%clk 0:02:57]} 4. h3 {[%clk 0:02:54]}  Bg7 {[%clk 0:02:55]} 5. d3 {[%clk 0:02:53]}  h6 {[%clk 0:02:53]} 6. Nbd2 {[%clk 0:02:52]}  e5 {[%clk 0:02:53]} 7. Bb2 {[%clk 0:02:52]}  a5 {[%clk 0:02:44]} 8. a3 {[%clk 0:02:50]}  Ne7 {[%clk 0:02:42]} 9. e3 {[%clk 0:02:44]}  Nf5 {[%clk 0:02:25]} 10. exd4 {[%clk 0:02:41]}  exd4 {[%clk 0:02:22]} 11. Be2 {[%clk 0:02:41]}  O-O {[%clk 0:02:13]} 12. O-O {[%clk 0:02:41]}  Nc6 {[%clk 0:02:14]} 13. b5 {[%clk 0:02:38]}  Nb8 {[%clk 0:02:12]} 14. Ne4 {[%clk 0:02:35]}  Be6 {[%clk 0:02:10]} 15. Re1 {[%clk 0:02:32]}  b6 {[%clk 0:01:53]} 16. a4 {[%clk 0:02:31]}  Ne7 {[%clk 0:01:49]} 17. Ba3 {[%clk 0:02:31]}  Re8 {[%clk 0:01:46]} 18. Rc1 {[%clk 0:02:28]}  Nd7 {[%clk 0:01:22]} 19. Nfd2 {[%clk 0:02:12]}  f5 {[%clk 0:01:17]} 20. Ng3 {[%clk 0:02:11]}  Nf6 {[%clk 0:00:47]} 21. Bf3 {[%clk 0:02:09]}  Rb8 {[%clk 0:00:47]} 22. Nh5 {[%clk 0:02:08]}  Ng6 {[%clk 0:00:37]} 23. Nxg7 {[%clk 0:02:06]}  Kxg7 {[%clk 0:00:37]} 24. Bc6 {[%clk 0:02:06]}  Bd7 {[%clk 0:00:35]} 25. Bxd7 {[%clk 0:02:02]}  Qxd7 {[%clk 0:00:33]} 26. Nf3 {[%clk 0:01:58]}  Nf4 {[%clk 0:00:23]} 27. Qd2 {[%clk 0:01:55]}  Re6 {[%clk 0:00:16]} 28. Rxe6 {[%clk 0:01:52]}  Nxe6 {[%clk 0:00:16]} 29. Bb2 {[%clk 0:01:50]}  Nh5 {[%clk 0:00:13]} 30. Re1 {[%clk 0:01:44]}  Nhf4 {[%clk 0:00:13]} 31. Ne5 {[%clk 0:01:39]}  Qd6 {[%clk 0:00:10]} 32. Nc6 {[%clk 0:01:36]}  Re8 {[%clk 0:00:09]} 33. Nxd4 {[%clk 0:01:26]}  Kg6 {[%clk 0:00:06]} 34. Nxe6 {[%clk 0:01:25]}  Rxe6 {[%clk 0:00:07]} 35. Rxe6+ {[%clk 0:01:17]}  Qxe6 {[%clk 0:00:07]} 36. d4 {[%clk 0:01:14]}  Qe4 {[%clk 0:00:07]} 37. f3 {[%clk 0:01:07]}  Qb1+ {[%clk 0:00:05]} 38. Kh2 {[%clk 0:01:07]}  Nd3 {[%clk 0:00:03]} 39. Bc3 {[%clk 0:01:05]}  h5 {[%clk 0:00:03]} 40. d5 {[%clk 0:01:05]}  h4 {[%clk 0:00:03]} 41. Bd4 {[%clk 0:00:58]}  Kh5 {[%clk 0:00:03]} 42. Qe2 {[%clk 0:00:53]}  Nf4 {[%clk 0:00:03]} 43. Qe8+ {[%clk 0:00:53]}  Kh6 {[%clk 0:00:03]} 44. Qh8+ {[%clk 0:00:49]}  Kg6 {[%clk 0:00:04]} 45. Qg7+ {[%clk 0:00:47]}  Kh5 {[%clk 0:00:04]} 46. Qh7# {[%clk 0:00:47]} 1-0

[Event "January 2 Late 2024"]
[Site "https://www.chess.com"]
[Date "2024.01.02"]
[Round "11"]
[White "Pepino, Enrico"]
[Black "Baules Rodriguez, Jorge Luis"]
[Result "0-1"]
[Board "102"]
[TimeControl "180+1"]
[WhiteFideId "810908"]
[BlackFideId "6600247"]
[WhiteElo "2090"]
[BlackElo "2437"]
[WhiteTeam "ITA"]
[BlackTeam "PAN"]
[WhiteClock "0:00:17"]
[BlackClock "0:00:18"]

1. e4 {[%clk 0:02:58]}  c5 {[%clk 0:02:56]} 2. Nf3 {[%clk 0:02:58]}  d6 {[%clk 0:02:56]} 3. d4 {[%clk 0:02:58]}  cxd4 {[%clk 0:02:57]} 4. Nxd4 {[%clk 0:02:59]}  Nf6 {[%clk 0:02:58]} 5. Nc3 {[%clk 0:02:59]}  g6 {[%clk 0:02:58]} 6. Be3 {[%clk 0:02:52]}  Bg7 {[%clk 0:02:58]} 7. f3 {[%clk 0:02:53]}  O-O {[%clk 0:02:58]} 8. Qd2 {[%clk 0:02:53]}  Nc6 {[%clk 0:02:59]} 9. Bc4 {[%clk 0:02:53]}  Bd7 {[%clk 0:02:59]} 10. Bb3 {[%clk 0:02:53]}  Rc8 {[%clk 0:02:59]} 11. O-O {[%clk 0:02:52]}  Na5 {[%clk 0:02:58]} 12. Kh1 {[%clk 0:02:51]}  a6 {[%clk 0:02:57]} 13. Rad1 {[%clk 0:02:51]}  b5 {[%clk 0:02:57]} 14. Nde2 {[%clk 0:02:47]}  Nc4 {[%clk 0:02:54]} 15. Bxc4 {[%clk 0:02:46]}  Rxc4 {[%clk 0:02:55]} 16. b3 {[%clk 0:02:31]}  Rc8 {[%clk 0:02:43]} 17. Nd5 {[%clk 0:02:31]}  Nxd5 {[%clk 0:02:41]} 18. exd5 {[%clk 0:02:32]}  Qc7 {[%clk 0:02:38]} 19. Rc1 {[%clk 0:02:31]}  Bb2 {[%clk 0:02:33]} 20. Rb1 {[%clk 0:02:30]}  Bg7 {[%clk 0:02:33]} 21. Rbc1 {[%clk 0:02:30]}  Qb7 {[%clk 0:02:28]} 22. c4 {[%clk 0:02:28]}  bxc4 {[%clk 0:02:28]} 23. bxc4 {[%clk 0:02:28]}  e5 {[%clk 0:02:06]} 24. Rb1 {[%clk 0:02:10]}  Qc7 {[%clk 0:02:03]} 25. Rfc1 {[%clk 0:02:10]}  Rfe8 {[%clk 0:01:44]} 26. Bb6 {[%clk 0:02:06]}  Qb8 {[%clk 0:01:43]} 27. Be3 {[%clk 0:01:55]}  Qa8 {[%clk 0:01:40]} 28. Qa5 {[%clk 0:01:53]}  Bf5 {[%clk 0:01:37]} 29. Rb6 {[%clk 0:01:52]}  Bd3 {[%clk 0:01:31]} 30. Rxa6 {[%clk 0:01:45]}  Qb7 {[%clk 0:01:31]} 31. Rb6 {[%clk 0:01:43]}  Qd7 {[%clk 0:01:13]} 32. Qd2 {[%clk 0:01:31]}  Bxc4 {[%clk 0:01:13]} 33. Ng3 {[%clk 0:01:13]}  f5 {[%clk 0:01:03]} 34. Nf1 {[%clk 0:01:05]}  Bf8 {[%clk 0:00:54]} 35. Bg1 {[%clk 0:01:02]}  Qf7 {[%clk 0:00:52]} 36. Ne3 {[%clk 0:01:02]}  Bh6 {[%clk 0:00:43]} 37. Qb4 {[%clk 0:00:53]}  Bxd5 {[%clk 0:00:38]} 38. Rxc8 {[%clk 0:00:51]}  Rxc8 {[%clk 0:00:37]} 39. Nxd5 {[%clk 0:00:51]}  Qxd5 {[%clk 0:00:37]} 40. Rxd6 {[%clk 0:00:38]}  Qxa2 {[%clk 0:00:35]} 41. h4 {[%clk 0:00:31]}  Bf8 {[%clk 0:00:31]} 42. Qb7 {[%clk 0:00:23]}  Re8 {[%clk 0:00:19]} 43. Ra6 {[%clk 0:00:19]}  Qc4 {[%clk 0:00:18]} 44. Kh2 {[%clk 0:00:17]}  Qxh4# {[%clk 0:00:18]} 0-1

[Event "January 2 Late 2024"]
[Site "https://www.chess.com"]
[Date "2024.01.02"]
[Round "11"]
[White "Kotlyar, Kirill"]
[Black "Eggleston, Thomas A"]
[Result "1-0"]
[Board "104"]
[TimeControl "180+1"]
[WhiteFideId "24145599"]
[BlackFideId "412139"]
[WhiteElo "2510"]
[BlackElo "2290"]
[WhiteTeam "RUS"]
[BlackTeam "ENG"]
[WhiteClock "0:00:57"]
[BlackClock "0:00:01"]

1. e4 {[%clk 0:03:00]}  e6 {[%clk 0:02:51]} 2. Nf3 {[%clk 0:03:00]}  d5 {[%clk 0:02:51]} 3. Nc3 {[%clk 0:02:58]}  c5 {[%clk 0:02:50]} 4. exd5 {[%clk 0:02:57]}  exd5 {[%clk 0:02:49]} 5. Bb5+ {[%clk 0:02:58]}  Bd7 {[%clk 0:02:35]} 6. Qe2+ {[%clk 0:02:58]}  Be7 {[%clk 0:02:28]} 7. Nxd5 {[%clk 0:02:53]}  Nc6 {[%clk 0:02:14]} 8. O-O {[%clk 0:02:28]}  Be6 {[%clk 0:02:07]} 9. Nf4 {[%clk 0:02:21]}  Bd7 {[%clk 0:01:43]} 10. Re1 {[%clk 0:02:06]}  Kf8 {[%clk 0:01:39]} 11. Nd5 {[%clk 0:01:43]}  Bd6 {[%clk 0:01:33]} 12. b3 {[%clk 0:01:38]}  Nf6 {[%clk 0:01:22]} 13. Nxf6 {[%clk 0:01:29]}  Qxf6 {[%clk 0:01:21]} 14. Rb1 {[%clk 0:01:30]}  Re8 {[%clk 0:01:19]} 15. Qf1 {[%clk 0:01:31]}  Rxe1 {[%clk 0:00:50]} 16. Qxe1 {[%clk 0:01:31]}  Qg6 {[%clk 0:00:23]} 17. Bb2 {[%clk 0:01:27]}  Bh3 {[%clk 0:00:18]} 18. Bf1 {[%clk 0:01:15]}  h5 {[%clk 0:00:13]} 19. Qe3 {[%clk 0:01:12]}  h4 {[%clk 0:00:09]} 20. Re1 {[%clk 0:01:12]}  Be6 {[%clk 0:00:08]} 21. Ng5 {[%clk 0:01:07]}  Bd7 {[%clk 0:00:06]} 22. Bd3 {[%clk 0:01:04]}  Qh5 {[%clk 0:00:05]} 23. Bf5 {[%clk 0:00:58]}  Be8 {[%clk 0:00:01]} 24. Qxe8# {[%clk 0:00:57]} 1-0

[Event "January 2 Late 2024"]
[Site "https://www.chess.com"]
[Date "2024.01.02"]
[Round "11"]
[White "Andersson, Bjorn 1971"]
[Black "Horak, Martin"]
[Result "0-1"]
[Board "105"]
[TimeControl "180+1"]
[WhiteFideId "1702114"]
[BlackFideId "367095"]
[WhiteElo "2257"]
[BlackElo "2482"]
[WhiteTeam "SWE"]
[BlackTeam "CZE"]
[WhiteClock "0:00:08"]
[BlackClock "0:00:48"]

1. e4 {[%clk 0:03:00]}  c5 {[%clk 0:03:00]} 2. Nf3 {[%clk 0:03:00]}  a6 {[%clk 0:02:59]} 3. d4 {[%clk 0:03:01]}  cxd4 {[%clk 0:03:00]} 4. Nxd4 {[%clk 0:03:02]}  Nf6 {[%clk 0:03:00]} 5. Nc3 {[%clk 0:03:01]}  e5 {[%clk 0:03:01]} 6. Nb3 {[%clk 0:03:01]}  Bb4 {[%clk 0:03:00]} 7. Bd3 {[%clk 0:02:59]}  O-O {[%clk 0:03:00]} 8. O-O {[%clk 0:02:59]}  Bxc3 {[%clk 0:03:00]} 9. bxc3 {[%clk 0:02:58]}  d6 {[%clk 0:03:00]} 10. c4 {[%clk 0:02:58]}  Qc7 {[%clk 0:02:54]} 11. Bg5 {[%clk 0:02:58]}  Nfd7 {[%clk 0:02:35]} 12. Nc1 {[%clk 0:02:55]}  Nc5 {[%clk 0:02:32]} 13. Ne2 {[%clk 0:02:54]}  Be6 {[%clk 0:02:31]} 14. Rc1 {[%clk 0:02:50]}  Nbd7 {[%clk 0:02:28]} 15. Nc3 {[%clk 0:02:50]}  Rac8 {[%clk 0:02:21]} 16. Kh1 {[%clk 0:02:45]}  f6 {[%clk 0:02:02]} 17. Be3 {[%clk 0:02:44]}  Qa5 {[%clk 0:01:59]} 18. Nd5 {[%clk 0:02:40]}  Bxd5 {[%clk 0:01:57]} 19. exd5 {[%clk 0:02:39]}  Qxa2 {[%clk 0:01:48]} 20. Bf5 {[%clk 0:02:37]}  Qxc4 {[%clk 0:01:40]} 21. Bxc5 {[%clk 0:02:02]}  Nxc5 {[%clk 0:01:40]} 22. Bxc8 {[%clk 0:02:01]}  Rxc8 {[%clk 0:01:40]} 23. Rb1 {[%clk 0:01:58]}  b5 {[%clk 0:01:34]} 24. f4 {[%clk 0:01:58]}  e4 {[%clk 0:01:30]} 25. Qg4 {[%clk 0:01:47]}  Re8 {[%clk 0:01:29]} 26. Rfe1 {[%clk 0:01:21]}  a5 {[%clk 0:01:26]} 27. Re3 {[%clk 0:01:17]}  b4 {[%clk 0:01:21]} 28. Rg3 {[%clk 0:01:16]}  Re7 {[%clk 0:01:10]} 29. Qc8+ {[%clk 0:01:04]}  Kf7 {[%clk 0:01:10]} 30. Qf5 {[%clk 0:01:03]}  g6 {[%clk 0:01:04]} 31. Qh3 {[%clk 0:01:01]}  Kg7 {[%clk 0:01:04]} 32. Qc8 {[%clk 0:00:56]}  Qxc2 {[%clk 0:00:50]} 33. Rf1 {[%clk 0:00:50]}  e3 {[%clk 0:00:48]} 34. Qd8 {[%clk 0:00:23]}  Qe4 {[%clk 0:00:47]} 35. Qxd6 {[%clk 0:00:16]}  Nd3 {[%clk 0:00:47]} 36. Kg1 {[%clk 0:00:13]}  e2 {[%clk 0:00:47]} 37. Rb1 {[%clk 0:00:11]}  Qd4+ {[%clk 0:00:45]} 38. Kh1 {[%clk 0:00:09]}  Nf2+ {[%clk 0:00:46]} 39. Kg1 {[%clk 0:00:09]}  Nh3+ {[%clk 0:00:46]} 40. Kh1 {[%clk 0:00:09]}  Qg1+ {[%clk 0:00:47]} 41. Rxg1 {[%clk 0:00:08]}  Nf2# {[%clk 0:00:48]} 0-1

[Event "January 2 Late 2024"]
[Site "https://www.chess.com"]
[Date "2024.01.02"]
[Round "11"]
[White "Porat, Tori"]
[Black "Rios Escobar, Adan"]
[Result "1-0"]
[Board "110"]
[TimeControl "180+1"]
[WhiteFideId "30982626"]
[BlackFideId "3403645"]
[WhiteElo "2191"]
[BlackElo "2367"]
[WhiteTeam "USA"]
[BlackTeam "CHI"]
[WhiteClock "0:00:36"]
[BlackClock "0:00:07"]

1. d4 {[%clk 0:03:00]}  Nf6 {[%clk 0:02:59]} 2. c4 {[%clk 0:03:01]}  g6 {[%clk 0:03:00]} 3. Nc3 {[%clk 0:03:00]}  d5 {[%clk 0:03:00]} 4. Nf3 {[%clk 0:03:00]}  Bg7 {[%clk 0:03:00]} 5. Bg5 {[%clk 0:03:00]}  Ne4 {[%clk 0:03:00]} 6. Bf4 {[%clk 0:03:00]}  Nxc3 {[%clk 0:03:00]} 7. bxc3 {[%clk 0:03:00]}  O-O {[%clk 0:02:59]} 8. e3 {[%clk 0:03:00]}  c5 {[%clk 0:02:59]} 9. cxd5 {[%clk 0:03:00]}  Qxd5 {[%clk 0:02:58]} 10. Be2 {[%clk 0:03:00]}  cxd4 {[%clk 0:02:58]} 11. cxd4 {[%clk 0:03:00]}  Qa5+ {[%clk 0:02:59]} 12. Qd2 {[%clk 0:03:00]}  Nc6 {[%clk 0:03:00]} 13. Qxa5 {[%clk 0:02:59]}  Nxa5 {[%clk 0:03:00]} 14. O-O {[%clk 0:02:59]}  b6 {[%clk 0:02:53]} 15. Rac1 {[%clk 0:02:56]}  Be6 {[%clk 0:02:49]} 16. a3 {[%clk 0:02:38]}  Rfc8 {[%clk 0:02:47]} 17. h3 {[%clk 0:02:37]}  Rxc1 {[%clk 0:02:45]} 18. Rxc1 {[%clk 0:02:37]}  Rc8 {[%clk 0:02:46]} 19. Rxc8+ {[%clk 0:02:35]}  Bxc8 {[%clk 0:02:47]} 20. Ne5 {[%clk 0:02:23]}  g5 {[%clk 0:02:41]} 21. Bg3 {[%clk 0:02:02]}  f6 {[%clk 0:02:31]} 22. Nc4 {[%clk 0:01:51]}  Ba6 {[%clk 0:01:54]} 23. Nxa5 {[%clk 0:01:48]}  Bxe2 {[%clk 0:01:55]} 24. Nc6 {[%clk 0:01:47]}  a6 {[%clk 0:01:55]} 25. Nxe7+ {[%clk 0:01:41]}  Kf7 {[%clk 0:01:55]} 26. Nc8 {[%clk 0:01:39]}  b5 {[%clk 0:01:47]} 27. d5 {[%clk 0:01:36]}  Bf8 {[%clk 0:01:40]} 28. Nd6+ {[%clk 0:01:31]}  Ke7 {[%clk 0:01:36]} 29. Ne4 {[%clk 0:01:28]}  a5 {[%clk 0:01:20]} 30. d6+ {[%clk 0:01:25]}  Ke6 {[%clk 0:01:13]} 31. Nc5+ {[%clk 0:01:23]}  Kd5 {[%clk 0:01:10]} 32. d7 {[%clk 0:01:21]}  Be7 {[%clk 0:01:05]} 33. Nb7 {[%clk 0:01:20]}  b4 {[%clk 0:00:57]} 34. axb4 {[%clk 0:01:17]}  axb4 {[%clk 0:00:57]} 35. Bd6 {[%clk 0:01:02]}  Ke6 {[%clk 0:00:01]} 36. Bxe7 {[%clk 0:01:01]}  Kxd7 {[%clk 0:00:02]} 37. Bxb4 {[%clk 0:00:59]}  Ke6 {[%clk 0:00:02]} 38. Nc5+ {[%clk 0:00:52]}  Kf5 {[%clk 0:00:02]} 39. f3 {[%clk 0:00:49]}  h5 {[%clk 0:00:02]} 40. Kf2 {[%clk 0:00:49]}  Bc4 {[%clk 0:00:02]} 41. Bc3 {[%clk 0:00:46]}  Kg6 {[%clk 0:00:02]} 42. Nd7 {[%clk 0:00:44]}  f5 {[%clk 0:00:02]} 43. Ne5+ {[%clk 0:00:44]}  Kh6 {[%clk 0:00:02]} 44. Nxc4 {[%clk 0:00:44]}  g4 {[%clk 0:00:03]} 45. hxg4 {[%clk 0:00:43]}  hxg4 {[%clk 0:00:04]} 46. fxg4 {[%clk 0:00:43]}  fxg4 {[%clk 0:00:05]} 47. Bg7+ {[%clk 0:00:42]}  Kxg7 {[%clk 0:00:05]} 48. Kg3 {[%clk 0:00:42]}  Kg6 {[%clk 0:00:05]} 49. Kxg4 {[%clk 0:00:43]}  Kf6 {[%clk 0:00:06]} 50. Kf4 {[%clk 0:00:43]}  Ke6 {[%clk 0:00:07]} 51. g4 {[%clk 0:00:43]}  Kf6 {[%clk 0:00:08]} 52. g5+ {[%clk 0:00:43]}  Ke6 {[%clk 0:00:09]} 53. e4 {[%clk 0:00:42]}  Kf7 {[%clk 0:00:10]} 54. e5 {[%clk 0:00:42]}  Kg7 {[%clk 0:00:11]} 55. Kf5 {[%clk 0:00:42]}  Kf7 {[%clk 0:00:12]} 56. g6+ {[%clk 0:00:43]}  Kg7 {[%clk 0:00:12]} 57. e6 {[%clk 0:00:43]}  Kg8 {[%clk 0:00:13]} 58. Ne5 {[%clk 0:00:41]}  Kf8 {[%clk 0:00:14]} 59. Nd7+ {[%clk 0:00:41]}  Kg7 {[%clk 0:00:09]} 60. e7 {[%clk 0:00:40]}  Kh6 {[%clk 0:00:09]} 61. e8=Q {[%clk 0:00:39]}  Kg7 {[%clk 0:00:09]} 62. Qe5+ {[%clk 0:00:37]}  Kg8 {[%clk 0:00:08]} 63. Nf6+ {[%clk 0:00:37]}  Kf8 {[%clk 0:00:06]} 64. Qe8+ {[%clk 0:00:36]}  Kg7 {[%clk 0:00:07]} 65. Qg8+ {[%clk 0:00:36]}  Kh6 {[%clk 0:00:07]} 66. Qh8# {[%clk 0:00:36]} 1-0